[Event "*** Titled Tuesday Blitz"]
[Site "Chess.com"]
[Date "2021.03.02"]
[Round "4"]
[White "elohunter1999"]
[Black "DrVelja"]
[Result "1/2-1/2"]
[WhiteElo "2634"]
[BlackElo "2841"]
[TimeControl "180+1"]
[EndTime "10:40:47 PST"]
[Termination "Game drawn - insufficient material"]

1. Nf3 {[%clk 0:03:00.9]} 1... Nf6 {[%clk 0:02:46.9]} 2. c4 {[%clk 0:02:59.7]}
2... g6 {[%clk 0:02:47.8]} 3. Nc3 {[%clk 0:02:59.3]} 3... Bg7 {[%clk 0:02:48.7]}
4. e4 {[%clk 0:02:59.3]} 4... e5 {[%clk 0:02:49.4]} 5. Nxe5 {[%clk 0:02:55.9]}
5... O-O {[%clk 0:02:49.9]} 6. d3 {[%clk 0:02:53.6]} 6... Re8 {[%clk 0:02:49.6]}
7. Nf3 {[%clk 0:02:53.3]} 7... d5 {[%clk 0:02:50.2]} 8. cxd5 {[%clk 0:02:51]}
8... Nxd5 {[%clk 0:02:51.1]} 9. Nxd5 {[%clk 0:02:49.9]} 9... Qxd5 {[%clk
0:02:51.1]} 10. Be2 {[%clk 0:02:48.9]} 10... Qd6 {[%clk 0:02:51.7]} 11. h3
{[%clk 0:02:34.3]} 11... c5 {[%clk 0:02:51.4]} 12. O-O {[%clk 0:02:34.2]} 12...
Nc6 {[%clk 0:02:51.8]} 13. Qa4 {[%clk 0:02:03.2]} 13... b6 {[%clk 0:02:47.6]}
14. Rb1 {[%clk 0:01:56]} 14... Bd7 {[%clk 0:02:47.5]} 15. Be3 {[%clk 0:01:50.1]}
15... Nb4 {[%clk 0:02:42.2]} 16. Qd1 {[%clk 0:01:38]} 16... Nxa2 {[%clk
0:02:41.4]} 17. d4 {[%clk 0:01:36.7]} 17... cxd4 {[%clk 0:02:35.8]} 18. Nxd4
{[%clk 0:01:36.5]} 18... Nb4 {[%clk 0:02:28.7]} 19. Nf5 {[%clk 0:01:25.7]} 19...
Qxd1 {[%clk 0:02:24.6]} 20. Rfxd1 {[%clk 0:01:25]} 20... Ba4 {[%clk 0:02:22.7]}
21. Nxg7 {[%clk 0:01:23.3]} 21... Bxd1 {[%clk 0:02:20.4]} 22. Nxe8 {[%clk
0:01:21.2]} 22... Bxe2 {[%clk 0:02:20.6]} 23. Nf6+ {[%clk 0:01:20.6]} 23... Kg7
{[%clk 0:02:11.5]} 24. Bd4 {[%clk 0:01:18.2]} 24... Rd8 {[%clk 0:02:11.9]} 25.
Be5 {[%clk 0:01:14.3]} 25... Nc6 {[%clk 0:02:01.6]} 26. Bc3 {[%clk 0:01:13.8]}
26... Rd1+ {[%clk 0:01:59.7]} 27. Rxd1 {[%clk 0:01:12.8]} 27... Bxd1 {[%clk
0:02:00.6]} 28. f3 {[%clk 0:01:07.1]} 28... b5 {[%clk 0:01:35.9]} 29. b4 {[%clk
0:00:54.1]} 29... Kf8 {[%clk 0:01:30.9]} 30. Nxh7+ {[%clk 0:00:51.1]} 30... Ke7
{[%clk 0:01:30.9]} 31. Kf2 {[%clk 0:00:41.4]} 31... a5 {[%clk 0:01:27.4]} 32.
bxa5 {[%clk 0:00:37.4]} 32... b4 {[%clk 0:01:28.3]} 33. Bf6+ {[%clk 0:00:36.6]}
33... Kd6 {[%clk 0:01:12]} 34. a6 {[%clk 0:00:37.5]} 34... Bb3 {[%clk
0:01:11.1]} 35. Bd4 {[%clk 0:00:31.8]} 35... Kc7 {[%clk 0:01:11.4]} 36. Bc5
{[%clk 0:00:28]} 36... Bc4 {[%clk 0:01:09.7]} 37. a7 {[%clk 0:00:27.5]} 37...
Kb7 {[%clk 0:01:10.4]} 38. g4 {[%clk 0:00:18.5]} 38... b3 {[%clk 0:01:09]} 39.
Ba3 {[%clk 0:00:18.2]} 39... Nxa7 {[%clk 0:01:02.1]} 40. Nf6 {[%clk 0:00:18.1]}
40... Nb5 {[%clk 0:00:57.4]} 41. Bb2 {[%clk 0:00:17.5]} 41... g5 {[%clk
0:00:53.5]} 42. f4 {[%clk 0:00:16.2]} 42... Nc7 {[%clk 0:00:23.7]} 43. fxg5
{[%clk 0:00:15.4]} 43... Ne6 {[%clk 0:00:24.4]} 44. h4 {[%clk 0:00:15.3]} 44...
Nf4 {[%clk 0:00:25.1]} 45. Bd4 {[%clk 0:00:09.1]} 45... Kc6 {[%clk 0:00:25.2]}
46. h5 {[%clk 0:00:09.1]} 46... Nh3+ {[%clk 0:00:25.9]} 47. Ke3 {[%clk
0:00:07.7]} 47... Nxg5 {[%clk 0:00:26.8]} 48. h6 {[%clk 0:00:07.5]} 48... Be6
{[%clk 0:00:26.9]} 49. Kf4 {[%clk 0:00:04.8]} 49... Nh3+ {[%clk 0:00:27.6]} 50.
Kg3 {[%clk 0:00:04.9]} 50... Ng5 {[%clk 0:00:28.5]} 51. h7 {[%clk 0:00:05.2]}
51... Nxh7 {[%clk 0:00:29.2]} 52. Nxh7 {[%clk 0:00:05.7]} 52... Kb5 {[%clk
0:00:30.1]} 53. Nf6 {[%clk 0:00:05.1]} 53... Kc4 {[%clk 0:00:30.6]} 54. Be5
{[%clk 0:00:05.3]} 54... Kd3 {[%clk 0:00:31.1]} 55. Kf4 {[%clk 0:00:05.4]} 55...
Kc2 {[%clk 0:00:27]} 56. g5 {[%clk 0:00:05.7]} 56... Bc4 {[%clk 0:00:26]} 57.
Bd4 {[%clk 0:00:05]} 57... b2 {[%clk 0:00:19.9]} 58. Bxb2 {[%clk 0:00:04.7]}
58... Kxb2 {[%clk 0:00:20.8]} 59. Ke5 {[%clk 0:00:05.1]} 59... Kc3 {[%clk
0:00:20.8]} 60. Kd6 {[%clk 0:00:04.6]} 60... Kd4 {[%clk 0:00:20.4]} 61. e5
{[%clk 0:00:04.9]} 61... Ba2 {[%clk 0:00:19.1]} 62. Ng4 {[%clk 0:00:03.6]} 62...
Be6 {[%clk 0:00:13.6]} 63. Nh6 {[%clk 0:00:03.7]} 63... Ba2 {[%clk 0:00:14.2]}
64. Ke7 {[%clk 0:00:03.5]} 64... Kxe5 {[%clk 0:00:14.1]} 65. Nxf7+ {[%clk
0:00:03.2]} 65... Kf5 {[%clk 0:00:14.8]} 66. Nd6+ {[%clk 0:00:02.4]} 66... Kxg5
{[%clk 0:00:15]} 1/2-1/2

[Event "*** Titled Tuesday Blitz"]
[Site "Chess.com"]
[Date "2021.03.02"]
[Round "4"]
[White "Legendinunknown"]
[Black "BahadirOzen"]
[Result "1/2-1/2"]
[WhiteElo "2613"]
[BlackElo "2789"]
[TimeControl "180+1"]
[EndTime "10:40:51 PST"]
[Termination "Game drawn by agreement"]

1. d4 {[%clk 0:03:00.9]} 1... d6 {[%clk 0:03:00.2]} 2. c4 {[%clk 0:02:59.6]}
2... g6 {[%clk 0:02:58.1]} 3. Nc3 {[%clk 0:02:59.1]} 3... Bg7 {[%clk 0:02:56.8]}
4. e4 {[%clk 0:02:57.4]} 4... c6 {[%clk 0:02:40.7]} 5. Nf3 {[%clk 0:02:56.9]}
5... Bg4 {[%clk 0:02:40]} 6. Be2 {[%clk 0:02:55.5]} 6... Qb6 {[%clk 0:02:37.6]}
7. Na4 {[%clk 0:02:44.3]} 7... Qa5+ {[%clk 0:02:37]} 8. Bd2 {[%clk 0:02:43.1]}
8... Qc7 {[%clk 0:02:37.5]} 9. Be3 {[%clk 0:02:39.5]} 9... Nd7 {[%clk
0:02:29.7]} 10. O-O {[%clk 0:02:36.3]} 10... Ngf6 {[%clk 0:02:15.1]} 11. Nc3
{[%clk 0:02:35.4]} 11... O-O {[%clk 0:02:14.4]} 12. h3 {[%clk 0:02:30.2]} 12...
Bxf3 {[%clk 0:02:14]} 13. Bxf3 {[%clk 0:02:31.1]} 13... a6 {[%clk 0:01:58.7]}
14. b4 {[%clk 0:02:05.9]} 14... e5 {[%clk 0:01:51.9]} 15. dxe5 {[%clk
0:01:37.2]} 15... Nxe5 {[%clk 0:01:51.7]} 16. Be2 {[%clk 0:01:36.9]} 16... Rfe8
{[%clk 0:01:50.3]} 17. Qd2 {[%clk 0:01:33.2]} 17... b5 {[%clk 0:01:42.8]} 18. c5
{[%clk 0:01:27.8]} 18... dxc5 {[%clk 0:01:29.5]} 19. Bxc5 {[%clk 0:01:25.2]}
19... Rad8 {[%clk 0:01:29.8]} 20. Qc2 {[%clk 0:01:23.6]} 20... Ned7 {[%clk
0:00:58.8]} 21. Be3 {[%clk 0:01:11.5]} 21... Qd6 {[%clk 0:00:46.6]} 22. a3
{[%clk 0:01:05.6]} 22... Qe7 {[%clk 0:00:46.4]} 23. Rad1 {[%clk 0:00:59.3]}
23... c5 {[%clk 0:00:40.2]} 24. bxc5 {[%clk 0:00:39.7]} 24... Nxc5 {[%clk
0:00:39.8]} 25. Rxd8 {[%clk 0:00:37.5]} 25... Rxd8 {[%clk 0:00:39]} 26. Nd5
{[%clk 0:00:31.9]} 26... Nxd5 {[%clk 0:00:36]} 27. Bxc5 {[%clk 0:00:31.5]} 27...
Rc8 {[%clk 0:00:15.1]} 28. Bxe7 {[%clk 0:00:22.7]} 28... Rxc2 {[%clk 0:00:16]}
29. Bd1 {[%clk 0:00:23.1]} 29... Rc7 {[%clk 0:00:14.6]} 30. exd5 {[%clk
0:00:15.6]} 30... Rxe7 {[%clk 0:00:14.7]} 31. Bf3 {[%clk 0:00:16.5]} 31... Be5
{[%clk 0:00:13.9]} 32. Rc1 {[%clk 0:00:15.8]} 32... Bd6 {[%clk 0:00:13.5]} 33.
Ra1 {[%clk 0:00:16]} 33... f5 {[%clk 0:00:12.3]} 34. g3 {[%clk 0:00:15.9]} 34...
Kf7 {[%clk 0:00:12.5]} 35. a4 {[%clk 0:00:16.1]} 35... b4 {[%clk 0:00:12.6]} 36.
a5 {[%clk 0:00:16]} 36... b3 {[%clk 0:00:13]} 37. Rb1 {[%clk 0:00:16.1]} 37...
Rb7 {[%clk 0:00:12.8]} 38. Be2 {[%clk 0:00:16.3]} 38... b2 {[%clk 0:00:12.2]}
39. Bxa6 {[%clk 0:00:16.4]} 39... Ra7 {[%clk 0:00:12]} 40. Bd3 {[%clk
0:00:15.9]} 40... Rxa5 {[%clk 0:00:11.2]} 41. Rxb2 {[%clk 0:00:15.9]} 41... Ra3
{[%clk 0:00:10.4]} 42. Rb7+ {[%clk 0:00:15.3]} 42... Kf6 {[%clk 0:00:10.9]} 43.
Be2 {[%clk 0:00:15.6]} 43... Ra2 {[%clk 0:00:10.3]} 44. Bf3 {[%clk 0:00:15.8]}
44... Bc5 {[%clk 0:00:10]} 45. Rc7 {[%clk 0:00:15.2]} 45... Bxf2+ {[%clk
0:00:09.8]} 46. Kf1 {[%clk 0:00:15.7]} 46... Bxg3 {[%clk 0:00:09.9]} 47. Rc6+
{[%clk 0:00:16.6]} 47... Ke5 {[%clk 0:00:10.1]} 48. Be2 {[%clk 0:00:17]} 48...
Kxd5 {[%clk 0:00:08.2]} 49. Bc4+ {[%clk 0:00:16.7]} 49... Kxc6 {[%clk
0:00:08.6]} 50. Bxa2 {[%clk 0:00:17.6]} 50... f4 {[%clk 0:00:07.4]} 51. Bg8
{[%clk 0:00:17.9]} 51... h6 {[%clk 0:00:07.8]} 52. Bh7 {[%clk 0:00:17.2]} 52...
g5 {[%clk 0:00:07.9]} 53. Be4+ {[%clk 0:00:17.4]} 53... Kc5 {[%clk 0:00:07.6]}
54. Bf3 {[%clk 0:00:18.3]} 54... Kd4 {[%clk 0:00:08]} 55. Kg2 {[%clk 0:00:19.2]}
55... Ke3 {[%clk 0:00:08.3]} 56. Bg4 {[%clk 0:00:18.9]} 56... Be1 {[%clk
0:00:08.6]} 57. Bf3 {[%clk 0:00:19.4]} 57... Bc3 {[%clk 0:00:08.9]} 58. Bg4
{[%clk 0:00:19.8]} 58... Ke4 {[%clk 0:00:09.3]} 59. Bf3+ {[%clk 0:00:20.2]}
59... Kf5 {[%clk 0:00:10.2]} 60. Bh5 {[%clk 0:00:20.1]} 60... Bd4 {[%clk
0:00:09.8]} 61. Kf3 {[%clk 0:00:20.4]} 61... Bc5 {[%clk 0:00:10.2]} 62. Kg2
{[%clk 0:00:20.7]} 62... Bb6 {[%clk 0:00:10.3]} 63. Kf3 {[%clk 0:00:21]} 63...
Ke5 {[%clk 0:00:10.9]} 64. Kg2 {[%clk 0:00:21.1]} 64... Ke4 {[%clk 0:00:11.8]}
65. Bf3+ {[%clk 0:00:20.7]} 65... Ke3 {[%clk 0:00:12.2]} 66. Bh5 {[%clk
0:00:21.1]} 66... Bc7 {[%clk 0:00:13.1]} 67. Bf3 {[%clk 0:00:21.3]} 67... Bd8
{[%clk 0:00:13.4]} 68. Bh5 {[%clk 0:00:21.6]} 68... Bf6 {[%clk 0:00:14.3]} 69.
Bf3 {[%clk 0:00:21.9]} 69... Kd4 {[%clk 0:00:13.4]} 70. Bg4 {[%clk 0:00:22.1]}
70... Ke5 {[%clk 0:00:13.8]} 71. Bh5 {[%clk 0:00:21.7]} 71... Kf5 {[%clk
0:00:13.9]} 72. Kf3 {[%clk 0:00:21.9]} 72... Bh8 {[%clk 0:00:14.2]} 73. Kg2
{[%clk 0:00:22.2]} 1/2-1/2

[Event "*** Titled Tuesday Blitz"]
[Site "Chess.com"]
[Date "2021.03.02"]
[Round "4"]
[White "MatyChess1"]
[Black "Loy_Konstantin"]
[Result "1-0"]
[WhiteElo "2583"]
[BlackElo "2347"]
[TimeControl "180+1"]
[EndTime "10:40:52 PST"]
[Termination "MatyChess1 won by resignation"]

1. e4 {[%clk 0:03:00.9]} 1... c5 {[%clk 0:02:59.5]} 2. Nf3 {[%clk 0:03:01]} 2...
d6 {[%clk 0:02:59.5]} 3. d4 {[%clk 0:03:01.1]} 3... cxd4 {[%clk 0:03:00.4]} 4.
Nxd4 {[%clk 0:03:02]} 4... Nf6 {[%clk 0:03:01]} 5. Nc3 {[%clk 0:03:02.9]} 5...
g6 {[%clk 0:03:01.3]} 6. g3 {[%clk 0:03:02.1]} 6... Bg7 {[%clk 0:03:01.6]} 7.
Bg2 {[%clk 0:03:02.7]} 7... Nc6 {[%clk 0:03:02.1]} 8. Nde2 {[%clk 0:03:01.5]}
8... Bd7 {[%clk 0:02:58.3]} 9. O-O {[%clk 0:02:59.1]} 9... Qc8 {[%clk
0:02:58.3]} 10. Nf4 {[%clk 0:02:59.4]} 10... O-O {[%clk 0:02:57.5]} 11. Ncd5
{[%clk 0:02:54.8]} 11... Nxd5 {[%clk 0:02:56.4]} 12. exd5 {[%clk 0:02:55.3]}
12... Ne5 {[%clk 0:02:56.2]} 13. Re1 {[%clk 0:02:51.2]} 13... Re8 {[%clk
0:02:55.5]} 14. c3 {[%clk 0:02:50]} 14... b5 {[%clk 0:02:45.5]} 15. a3 {[%clk
0:02:46.9]} 15... Rb8 {[%clk 0:02:43.2]} 16. Be3 {[%clk 0:02:38.5]} 16... a5
{[%clk 0:02:41.9]} 17. Bd4 {[%clk 0:02:38.3]} 17... b4 {[%clk 0:02:36.7]} 18.
cxb4 {[%clk 0:02:38.1]} 18... axb4 {[%clk 0:02:37.6]} 19. a4 {[%clk 0:02:38.9]}
19... b3 {[%clk 0:02:27.9]} 20. a5 {[%clk 0:02:23.3]} 20... Qc2 {[%clk
0:02:11.8]} 21. a6 {[%clk 0:02:20.4]} 21... Ra8 {[%clk 0:02:08.5]} 22. a7 {[%clk
0:02:16]} 22... Qxd1 {[%clk 0:01:53.2]} 23. Rexd1 {[%clk 0:02:15.9]} 23... Nc4
{[%clk 0:01:53.7]} 24. Bxg7 {[%clk 0:01:58.8]} 24... Kxg7 {[%clk 0:01:54.6]} 25.
Rd3 {[%clk 0:01:49.9]} 25... Rec8 {[%clk 0:01:07.1]} 26. Rxb3 {[%clk 0:01:46.1]}
26... Rc7 {[%clk 0:01:07.3]} 27. Rc3 {[%clk 0:01:41.7]} 27... Rcxa7 {[%clk
0:01:00.9]} 28. Rxa7 {[%clk 0:01:31]} 28... Rxa7 {[%clk 0:01:01.8]} 29. Rxc4
{[%clk 0:01:30.1]} 29... Ra1+ {[%clk 0:01:01.4]} 30. Bf1 {[%clk 0:01:30.4]}
30... Bb5 {[%clk 0:00:57]} 31. b3 {[%clk 0:01:30.4]} 31... Bxc4 {[%clk
0:00:48.5]} 32. bxc4 {[%clk 0:01:29.6]} 32... Kf6 {[%clk 0:00:48.4]} 33. Kg2
{[%clk 0:01:26.4]} 33... Ke5 {[%clk 0:00:45.4]} 34. h4 {[%clk 0:01:11.5]} 34...
Kd4 {[%clk 0:00:44.3]} 35. Nh3 {[%clk 0:01:08.4]} 35... h6 {[%clk 0:00:42.4]}
36. Ng1 {[%clk 0:01:01.7]} 36... Rxf1 {[%clk 0:00:32.9]} 37. Kxf1 {[%clk
0:01:02.5]} 37... Kxc4 {[%clk 0:00:33.7]} 38. Ke2 {[%clk 0:01:02.4]} 38... Kxd5
{[%clk 0:00:34.1]} 39. Kd3 {[%clk 0:01:02.6]} 39... e5 {[%clk 0:00:32.7]} 40.
Ne2 {[%clk 0:01:01.5]} 40... Ke6 {[%clk 0:00:29.9]} 41. f3 {[%clk 0:00:55.9]}
41... d5 {[%clk 0:00:29.6]} 42. Nc3 {[%clk 0:00:47.7]} 42... f5 {[%clk
0:00:29.1]} 43. Nb5 {[%clk 0:00:42.7]} 43... Kd7 {[%clk 0:00:22.4]} 44. Nc3
{[%clk 0:00:36.7]} 44... Ke6 {[%clk 0:00:22.3]} 45. Na4 {[%clk 0:00:34.8]} 45...
Kd6 {[%clk 0:00:21.7]} 46. Ke3 {[%clk 0:00:32.1]} 46... Ke6 {[%clk 0:00:20.5]}
47. Nc5+ {[%clk 0:00:31.6]} 47... Kd6 {[%clk 0:00:20.3]} 48. Nd3 {[%clk
0:00:32]} 48... d4+ {[%clk 0:00:18.4]} 49. Ke2 {[%clk 0:00:30.2]} 49... Kd5
{[%clk 0:00:14.4]} 50. Kd2 {[%clk 0:00:20.2]} 50... g5 {[%clk 0:00:13.7]} 51. h5
{[%clk 0:00:15.9]} 51... e4 {[%clk 0:00:13]} 52. Ne1 {[%clk 0:00:15.3]} 52...
Kc4 {[%clk 0:00:12.2]} 53. g4 {[%clk 0:00:12.7]} 53... exf3 {[%clk 0:00:07.6]}
54. Nxf3 {[%clk 0:00:10.1]} 54... fxg4 {[%clk 0:00:05.9]} 55. Ne5+ {[%clk
0:00:10.5]} 55... Kd5 {[%clk 0:00:05.6]} 56. Nxg4 {[%clk 0:00:11.4]} 56... Ke4
{[%clk 0:00:04.6]} 57. Nxh6 {[%clk 0:00:11.1]} 57... Ke5 {[%clk 0:00:01.2]} 58.
Kd3 {[%clk 0:00:10.4]} 58... Kf6 {[%clk 0:00:02.1]} 59. Ng4+ {[%clk 0:00:10.2]}
59... Kg7 {[%clk 0:00:03]} 60. Kxd4 {[%clk 0:00:09.5]} 60... Kf7 {[%clk
0:00:03.9]} 61. Ke4 {[%clk 0:00:09.6]} 61... Kg7 {[%clk 0:00:04.2]} 62. Kf5
{[%clk 0:00:09.9]} 62... Kf7 {[%clk 0:00:05.1]} 63. Kxg5 {[%clk 0:00:10.4]}
63... Kg7 {[%clk 0:00:06]} 64. Ne5 {[%clk 0:00:10.3]} 64... Kh8 {[%clk
0:00:06.9]} 65. Kg6 {[%clk 0:00:10.2]} 65... Kg8 {[%clk 0:00:07.1]} 66. Nf7
{[%clk 0:00:11.1]} 66... Kf8 {[%clk 0:00:06.9]} 67. h6 {[%clk 0:00:12]} 67...
Kg8 {[%clk 0:00:07.8]} 68. h7+ {[%clk 0:00:12.9]} 1-0

[Event "*** Titled Tuesday Blitz"]
[Site "Chess.com"]
[Date "2021.03.02"]
[Round "4"]
[White "Lysiak_Poltorak"]
[Black "Gloomy_Wanderer"]
[Result "1-0"]
[WhiteElo "2474"]
[BlackElo "2696"]
[TimeControl "180+1"]
[EndTime "10:40:57 PST"]
[Termination "Lysiak_Poltorak won on time"]

1. d4 {[%clk 0:03:00.9]} 1... Nf6 {[%clk 0:02:59.8]} 2. c4 {[%clk 0:03:01.2]}
2... e6 {[%clk 0:03:00.4]} 3. Nc3 {[%clk 0:03:01.3]} 3... Bb4 {[%clk 0:03:00.7]}
4. Qc2 {[%clk 0:03:01.4]} 4... Nc6 {[%clk 0:03:01.2]} 5. Nf3 {[%clk 0:03:00.9]}
5... d6 {[%clk 0:03:01.7]} 6. Bg5 {[%clk 0:03:00.8]} 6... h6 {[%clk 0:03:01.7]}
7. Bh4 {[%clk 0:03:01.3]} 7... O-O {[%clk 0:03:01.5]} 8. a3 {[%clk 0:02:57]}
8... Bxc3+ {[%clk 0:02:57.6]} 9. Qxc3 {[%clk 0:02:57.9]} 9... Qe7 {[%clk
0:02:56]} 10. e3 {[%clk 0:02:57.2]} 10... e5 {[%clk 0:02:56]} 11. dxe5 {[%clk
0:02:56.9]} 11... dxe5 {[%clk 0:02:56.9]} 12. Be2 {[%clk 0:02:54.9]} 12... Re8
{[%clk 0:02:55.4]} 13. O-O {[%clk 0:02:53.5]} 13... a5 {[%clk 0:02:53.6]} 14. b3
{[%clk 0:02:37.3]} 14... g5 {[%clk 0:02:51.6]} 15. Bg3 {[%clk 0:02:36.5]} 15...
Ne4 {[%clk 0:02:46.9]} 16. Qc2 {[%clk 0:02:34.9]} 16... Bf5 {[%clk 0:02:35.5]}
17. Qb2 {[%clk 0:02:12.1]} 17... f6 {[%clk 0:02:20.6]} 18. Nd2 {[%clk
0:02:03.2]} 18... Nc5 {[%clk 0:02:01.1]} 19. Rad1 {[%clk 0:01:24.7]} 19... Rad8
{[%clk 0:01:54.6]} 20. Nb1 {[%clk 0:01:23.2]} 20... Ne4 {[%clk 0:01:32.6]} 21.
Nc3 {[%clk 0:01:21.4]} 21... Nxc3 {[%clk 0:01:32.3]} 22. Qxc3 {[%clk 0:01:22.3]}
22... Qxa3 {[%clk 0:01:32.3]} 23. Bh5 {[%clk 0:01:16.1]} 23... Rxd1 {[%clk
0:01:27.1]} 24. Rxd1 {[%clk 0:01:17]} 24... Rd8 {[%clk 0:01:24]} 25. Rxd8+
{[%clk 0:00:43.5]} 25... Nxd8 {[%clk 0:01:24.9]} 26. h4 {[%clk 0:00:37.1]} 26...
Qb4 {[%clk 0:01:06.9]} 27. Bxe5 {[%clk 0:00:19.7]} 27... fxe5 {[%clk 0:00:56.1]}
28. Qxe5 {[%clk 0:00:20.6]} 28... Qf8 {[%clk 0:00:23.7]} 29. hxg5 {[%clk
0:00:20.5]} 29... hxg5 {[%clk 0:00:24.6]} 30. g4 {[%clk 0:00:21]} 30... Bh7
{[%clk 0:00:19.8]} 31. Qxg5+ {[%clk 0:00:20.3]} 31... Kh8 {[%clk 0:00:20.2]} 32.
Qe5+ {[%clk 0:00:20.5]} 32... Kg8 {[%clk 0:00:17.3]} 33. Qg5+ {[%clk 0:00:20.4]}
33... Kh8 {[%clk 0:00:17.8]} 34. Qxa5 {[%clk 0:00:20.5]} 34... Qd6 {[%clk
0:00:14.7]} 35. Qg5 {[%clk 0:00:17.9]} 35... Qd1+ {[%clk 0:00:13.2]} 36. Kh2
{[%clk 0:00:16.2]} 36... Qd6+ {[%clk 0:00:12.5]} 37. Kg1 {[%clk 0:00:15.8]}
37... Be4 {[%clk 0:00:06.3]} 38. Qf4 {[%clk 0:00:08.5]} 38... Qxf4 {[%clk
0:00:05.6]} 39. exf4 {[%clk 0:00:09.4]} 39... Ne6 {[%clk 0:00:06.3]} 40. f5
{[%clk 0:00:08.4]} 40... Nd4 {[%clk 0:00:06.7]} 41. b4 {[%clk 0:00:06.6]} 41...
Nf3+ {[%clk 0:00:06.6]} 42. Kf1 {[%clk 0:00:05.2]} 42... Nd2+ {[%clk 0:00:02.6]}
43. Ke2 {[%clk 0:00:05.8]} 43... Nxc4 {[%clk 0:00:03.5]} 44. f3 {[%clk
0:00:06.4]} 44... Bd5 {[%clk 0:00:04]} 45. g5 {[%clk 0:00:07]} 45... Nd6 {[%clk
0:00:03.5]} 46. Bg4 {[%clk 0:00:06.9]} 46... Kg7 {[%clk 0:00:03.3]} 47. f4
{[%clk 0:00:07.3]} 47... Be4 {[%clk 0:00:03.1]} 48. f6+ {[%clk 0:00:06.8]} 48...
Kg6 {[%clk 0:00:03]} 49. Ke3 {[%clk 0:00:07.1]} 49... Bf5 {[%clk 0:00:02.8]} 50.
Bf3 {[%clk 0:00:07.5]} 50... b6 {[%clk 0:00:03.4]} 51. Bc6 {[%clk 0:00:07.2]}
51... Be6 {[%clk 0:00:03]} 52. Kd4 {[%clk 0:00:07.1]} 52... Kf5 {[%clk
0:00:03.2]} 53. Ke3 {[%clk 0:00:04.1]} 53... Kg6 {[%clk 0:00:02.5]} 54. Kd4
{[%clk 0:00:04.2]} 54... Kf7 {[%clk 0:00:01.9]} 55. Ke5 {[%clk 0:00:04.5]} 55...
Nc4+ {[%clk 0:00:02.5]} 56. Kd4 {[%clk 0:00:04.9]} 56... Nd6 {[%clk 0:00:03.4]}
57. Ke5 {[%clk 0:00:05.3]} 57... Bb3 {[%clk 0:00:02.9]} 58. Kd4 {[%clk
0:00:03.5]} 58... Nf5+ {[%clk 0:00:02.7]} 59. Ke5 {[%clk 0:00:03.7]} 59... Nd6
{[%clk 0:00:03.2]} 60. Bd7 {[%clk 0:00:03.7]} 60... Bc4 {[%clk 0:00:03.1]} 61.
f5 {[%clk 0:00:04]} 61... Kf8 {[%clk 0:00:02.2]} 62. g6 {[%clk 0:00:04.2]} 62...
Bb3 {[%clk 0:00:01.6]} 63. Be6 {[%clk 0:00:04.7]} 1-0